Cogmind - Beta 16 *** ADVENTURER MODE // 2026.01.02 @ 15:58:06 Player: Brooke isn't good at these Result: Self-destructed Performance ------------- Evolutions (3) 1500 Regions Visited (4) 800 Robots Destroyed (74) 370 Value Destroyed (1987) 1987 Prototype IDs (4) 80 Alien Tech Used (0) 0 Bonus (0) 0 TOTAL SCORE: 4737 Bonus ------- None Cogmind --------- Core Integrity 590/700 Matter 186/300 Energy 92/125 System Corruption 1% Temperature Cool (0) Movement Rolling (100) Location -7/Factory Parts ------- > --- POWER (2) -------- Light Ion Engine > --- PROPULSION (4) --- Armored Huge Wheel > --- UTILITY (4) ------ Improved Targeting Computer Kinecellerator Transmission Jammer > --- WEAPON (3) ------- Beam Rifle Heavy Assault Rifle Assault Cannon > --- INVENTORY (5) ---- Visual Processing Unit Light Armor Plating High-powered Shotgun Peak State ------------ > --- POWER ------------ Improved Ion Engine Light Nuclear Core > --- PROPULSION ------- Aluminum Leg Improved Aluminum Leg Carbon-fiber Leg Carbon-fiber Leg > --- UTILITY ---------- Improved Targeting Computer Kinecellerator Transmission Jammer Medium Armor Plating > --- WEAPON ----------- Beam Rifle Heavy Assault Rifle Assault Cannon > --- INVENTORY -------- Visual Processing Unit Light Armor Plating Corruption Screen High-powered Shotgun [Rating: 34] Favorites ----------- Power Ion Engine Engine Ion Engine Power Core Nuclear Core Propulsion Improved Aluminum Leg Leg Improved Aluminum Leg Wheel Armored Huge Wheel Flight Unit VTOL Module Utility Improved Targeting Computer Device ECM Suite Storage Small Matter Pod Processor Improved Targeting Computer Protection Medium Armor Plating Weapon Heavy Assault Rifle Energy Gun Beam Rifle Ballistic Gun Heavy Assault Rifle Ballistic Cannon Assault Cannon Special Weapon Mining Laser Build | -11 -10 -10 -8 -7 ------- Run | Yrd Mat Sub Mat Fac Slots Evolved 6 | . . . 4 2 Power 1 | . . . . 1 Propulsion 2 | . . . 2 . Utility 2 | . . . 1 1 Weapon 1 | . . . 1 . Parts Attached 52 | 6 14 . 22 10 Power 9 | 1 3 . 4 1 Engine 7 | 1 3 . 2 1 Core 2 | . . . 2 . Reactor . | . . . . . Propulsion 17 | 2 2 . 9 4 Treads . | . . . . . Leg 13 | 2 2 . 9 . Wheel 1 | . . . . 1 Hover . | . . . . . Flight 3 | . . . . 3 Utility 12 | 1 6 . 1 4 Device 6 | 1 2 . 1 2 Storage 2 | . 1 . . 1 Processor 3 | . 3 . . . Hackware . | . . . . . Protection 1 | . . . . 1 Artifact . | . . . . . Weapon 14 | 2 3 . 8 1 Energy Gun 3 | 1 . . 2 . Energy Cannon . | . . . . . Ballistic Gun 8 | 1 2 . 5 . Ballistic Cannon 2 | . . . 1 1 Launcher . | . . . . . Special Weapon 1 | . 1 . . . Impact Weapon . | . . . . . Slashing Weapon . | . . . . . Piercing Weapon . | . . . . . Special Melee Weapon . | . . . . . Unidentified Prototypes . | . . . . . Parts Lost 9 | . . . 3 6 Power 2 | . . . . 2 Propulsion 6 | . . . 3 3 Utility 1 | . . . . 1 Weapon . | . . . . . Highest Loss Streak 5 | . . . 2 5 To Critical Strikes . | . . . . . Average Backups 4 | 2 4 5 4 4 Power 1 | . . 1 1 . Propulsion 1 | 1 2 2 . . Utility 1 | . . 1 1 2 Weapon . | . 1 1 . 1 Tool/Special . | . . . . . Unused Backups 13 | . 6 . 2 5 Power 1 | . . . 1 . Propulsion 3 | . 3 . . . Utility 5 | . 1 . 1 3 Weapon 4 | . 2 . . 2 Tool/Special . | . . . . . Average Slot Usage (%) 97 | . 98 100 99 87 Engine 7 | . 14 14 1 2 Core 3 | . . . 7 5 Leg 30 | . 28 28 35 25 Device 14 | . 10 14 17 14 Processor 10 | . 13 14 9 7 Energy Gun 4 | . 4 . 4 7 Ballistic Gun 19 | . 20 28 20 7 Ballistic Cannon 1 | . . . 1 7 Peak Build Rating 34 | 6 13 12 26 34 Average Rating 18 | 4 10 12 22 28 On Entrance 11 | . 6 12 12 26 Avg Prop Armor Cover (%) 7 | . . . . 7 Naked Turns . | . . . . . Heaviest Build 35 | 8 13 13 19 35 Greatest Support 53 | 20 26 26 53 53 Greatest Overweight (x) 6 | . . . . 6 Average Overweight (x) . | . . . . . Largest Inventory Capacity 5 | 5 5 5 5 5 Average Capacity 5 | 5 5 5 5 5 Most Carried 5 | 5 5 5 5 5 Average Carried 4 | 2 4 5 4 4 Final Capacity 5 | 5 5 5 5 5 Final Carried 5 | 5 5 5 5 3 Class Distribution -------------------- 46% | Mutant 33% | Scavenger-Gunner 18% | Gunner Dominant Class ---------------- Mutant | -10/Materials Mutant | -10/Subcaves Scavenger-Gunner | -8/Materials Scavenger-Gunner | -7/Factory Resources | -11 -10 -10 -8 -7 ----------- Run | Yrd Mat Sub Mat Fac Matter Collected 1667 | 272 304 . 867 224 Remotely . | . . . . . Salvage Created 2273 | 63 530 . 1223 457 Parts 153 | 5 44 . 67 37 Haulers Intercepted 1 | . 1 . . . Recyclers Shooed . | . . . . . Parts Field Recycled . | . . . . . Retrieved Matter . | . . . . . Parts Self-Destructed . | . . . . . Prevented . | . . . . . Parts Restored . | . . . . . Kills | -11 -10 -10 -8 -7 ------- Run | Yrd Mat Sub Mat Fac Combat Hostiles Destroyed 51 | 1 16 . 23 11 Guns 45 | 1 16 . 23 5 Cannons 5 | . . . . 5 AOE 1 | . . . . 1 Classes Destroyed 12 | 2 4 . 5 1 Worker 11 | . 1 . 1 9 Builder 2 | . . . 1 1 Tunneler 1 | 1 . . . . Hauler 1 | . 1 . . . Recycler 3 | . . . 2 1 Operator 1 | . . . 1 . Watcher 4 | . 2 . 2 . Swarmer 22 | . 9 . 6 7 Grunt 16 | 1 7 . 8 . Duelist 1 | . . . 1 . Sentry 9 | . . . 8 1 Programmer 3 | . . . . 3 Best Kill Streak 10 | 2 7 . 6 10 Combat Bots Only 6 | 1 6 . 6 5 Max Kills in Single Turn 5 | 2 2 . 2 5 Gunslinging 1 | . 1 . . . Exploded 1 | . . . . 1 Melee . | . . . . . Uniques/NPCs Destroyed . | . . . . . Combat | -11 -10 -10 -8 -7 -------- Run | Yrd Mat Sub Mat Fac Hostile Shots Fired 339 | 6 71 . 157 105 Missed 93 | . 19 . 40 34 Hits 246 | 6 52 . 117 71 Projectile 246 | 6 52 . 117 71 Critical Strikes 7 | . . . 5 2 Damage Taken 2528 | 49 371 . 1396 712 Core 421 | 8 103 . 200 110 Absorbed by Shields . | . . . . . Ignored by Resistances 745 | 16 122 . 393 214 Core Remaining (%) 71 | 96 . 55 63 . Volleys Fired 161 | 4 47 4 75 31 Largest 3 | 2 2 2 3 3 Hottest 125 | 70 70 46 125 116 Shots Fired 420 | 8 93 8 225 86 Gun 369 | 8 93 8 205 55 Cannon 51 | . . . 20 31 Launcher . | . . . . . Special . | . . . . . Kinetic 317 | 4 62 8 181 62 Thermal 103 | 4 31 . 44 24 Explosive . | . . . . . Electromagnetic . | . . . . . Robot Hit Streak 24 | 5 14 . 24 8 Robot Miss Streak 3 | 1 3 . 3 3 Penetration Max . | . . . . . Secondary Targets 6 | . 3 . 3 . Max Gunslinging Chain 1 | . 1 . 1 . Shots Hit Robots 289 | 6 62 . 177 44 Core Hits 114 | 3 27 . 53 31 Critical Kills 1 | . . . 1 . Critical Parts Destroyed 2 | . 1 . 1 . Critical Strikes 5 | 1 1 . 2 1 Burn 2 | 1 . . . 1 Destroy 3 | . 1 . 2 . Melee Attacks . | . . . . . Impact . | . . . . . Slashing . | . . . . . Piercing . | . . . . . Sneak Attacks . | . . . . . Combat Hostiles . | . . . . . Follow-up Attacks . | . . . . . Damage Inflicted 4768 | 82 828 . 1983 1875 Guns 3087 | 82 826 . 1669 510 Cannons 586 | . . . 141 445 Explosions 1077 | . . . 157 920 Melee . | . . . . . Ramming 18 | . 2 . 16 . Kinetic 2841 | 44 580 . 1490 727 Thermal 832 | 38 246 . 320 228 Explosive 1077 | . . . 157 920 Electromagnetic . | . . . . . Impact . | . . . . . Slashing . | . . . . . Piercing . | . . . . . Highest Corruption 1 | . 1 1 . 1 Average Corruption 1 | . 1 1 . 1 Corruption Purged . | . . . . . Corruption Blocked . | . . . . . Effects 14 | . 10 4 . . Message Errors 4 | . 2 2 . . Matter Fused 5 | . 3 2 . . Energy Discharges 2 | . 2 . . . Misfires 1 | . 1 . . . Alerts 1 | . 1 . . . Weapon Failures 1 | . 1 . . . Overload Shots . | . . . . . Overflow Damage 110 | . . . 23 87 Projectiles . | . . . . . Explosions 110 | . . . 23 87 Melee . | . . . . . Knockbacks 4 | . . . . 4 Impact . | . . . . . Kinetic 4 | . . . . 4 Secondary . | . . . . . Self-Inflicted Damage 86 | . . . 86 . Shots 1 | . . . 1 . Rammed 3 | . . . . 3 Targets Rammed 8 | . 1 . 4 3 Kicked 5 | . 1 . 4 . Crushed . | . . . . . Highest Temperature 500 | 60 3 . 86 500 Average Temperature 147 | 32 1 . 24 263 Received Heat Transfer 936 | 36 156 . 702 42 Effects 5 | . . . . 5 Shutdowns 2 | . . . . 2 Energy Bleed 1 | . . . . 1 Short Circuit 1 | . . . . 1 Damage (minor) 1 | . . . . 1 Siege Activations . | . . . . . Martial Activations . | . . . . . Shielding Activations . | . . . . . Robots Disrupted . | . . . . . Combat Hostiles . | . . . . . Robots Corrupted . | . . . . . Combat Hostiles . | . . . . . Parts Fried . | . . . . . Impact Corruptions . | . . . . . Robots Melted . | . . . . . Combat Hostiles . | . . . . . Parts Melted 2 | . . . . 2 Heat Transferred 2331 | 185 740 . 777 629 Parts Sabotaged . | . . . . . Parts Stolen . | . . . . . Parts Stripped . | . . . . . Power Chain Reactions . | . . . . . Alert | -11 -10 -10 -8 -7 ------- Run | Yrd Mat Sub Mat Fac Maximum Alert Level 1 | . . . 1 1 Low Security (%) 92 | 100 100 . 85 95 Level 1 7 | . . . 14 4 Level 2 . | . . . . . Level 3 . | . . . . . Level 4 . | . . . . . Level 5 . | . . . . . High Security . | . . . . . Max Security . | . . . . . Peak Influence 329 | 25 151 . 260 329 Initial 31 | . 8 . . 31 Average 63 | 4 42 . 93 34 Influence Increases 1735 | 25 418 . 759 533 Destroy 0b10 Robot/C 1020 | 20 320 . 460 220 Destroy 0b10 Robot/NC 115 | 5 20 . 35 55 Destroy Leader 250 | . 56 . 134 60 Successful Hack 18 | . 6 . 10 2 Disable Machine 189 | . . . 36 153 Destroy Structure 68 | . 1 . 39 28 Partial Spotted 45 | . . . 45 . Lose Combat Pursuer 30 | . 15 . . 15 Influence Decreases 1416 | 10 393 40 676 297 Entered New Map 81 | . 7 22 . 52 Time Decay 1245 | 10 386 18 646 185 Lost Part 90 | . . . 30 60 Squads Dispatched 7 | . 2 . 2 3 Investigation 2 | . 2 . . . Extermination 2 | . . . . 2 Reinforcement 2 | . . . 1 1 Assault . | . . . . . Garrison 1 | . . . 1 . Intercept . | . . . . . Searches Triggered . | . . . . . Construction Impeded . | . . . . . Haulers Reinforced . | . . . . . Active Scanning Responses . | . . . . . Cargo Convoy Interrupts . | . . . . . Stealth | -11 -10 -10 -8 -7 --------- Run | Yrd Mat Sub Mat Fac Distress Signals 5 | . . . 5 . Communications Jammed 6 | . . . . 6 Distress Signals 6 | . . . . 6 Times Spotted 87 | 1 20 . 52 14 Peak Tracking Total 5 | 1 5 . 5 4 Tactical Retreats 18 | . 1 . 16 1 ECM-based Alert Blocks 28 | . . . 28 . Traps | -11 -10 -10 -8 -7 ------- Run | Yrd Mat Sub Mat Fac Traps Triggered 4 | . 4 . . . Indirectly . | . . . . . Trap Hack Attempts . | . . . . . Triggered . | . . . . . Disarmed . | . . . . . Reprogrammed . | . . . . . Reused . | . . . . . Traps Extracted . | . . . . . Installed . | . . . . . Triggered . | . . . . . Machines | -11 -10 -10 -8 -7 ---------- Run | Yrd Mat Sub Mat Fac Machines Disabled 21 | . . . 4 17 Max in Single Turn 11 | . . . 2 11 Machines Repaired . | . . . . . Machines Dismantled . | . . . . . Machines Sabotaged . | . . . . . Overloaded Fab Kills . | . . . . . Hacking | -11 -10 -10 -8 -7 --------- Run | Yrd Mat Sub Mat Fac Machines Accessed 12 | . 6 . 4 2 Terminals 11 | . 5 . 4 2 Fabricators . | . . . . . Repair Stations . | . . . . . Recycling Units 1 | . 1 . . . Scanalyzers . | . . . . . Garrison Access . | . . . . . Total Hacks 41 | . 21 . 14 6 Successful 33 | . 14 . 13 6 Failed 8 | . 7 . 1 . Catastrophic 1 | . 1 . . . Database Lockouts . | . . . . . Manual . | . . . . . Terminals 40 | . 20 . 14 6 Fabricators . | . . . . . Repair Stations . | . . . . . Recycling Units 1 | . 1 . . . Scanalyzers . | . . . . . Garrison Access . | . . . . . Terminal Hacks 32 | . 13 . 13 6 Record 18 | . 6 . 8 4 Prototype ID Bank 2 | . 1 . 1 . Alert Level 4 | . 3 . 1 . Locate Traps 3 | . 1 . 1 1 Dispatch Records 2 | . 1 . 1 . Maintenance Status 1 | . . . 1 . Registered Components 1 | . 1 . . . Zone Layout 1 | . . . . 1 Fabricator Hacks . | . . . . . Repair Station Hacks . | . . . . . Recycling Unit Hacks 1 | . 1 . . . Report Inventory 1 | . 1 . . . Scanalyzer . | . . . . . Garrison Access Hacks . | . . . . . Unauthorized Hacks . | . . . . . Terminals . | . . . . . Fabricators . | . . . . . Repair Stations . | . . . . . Recycling Units . | . . . . . Scanalyzers . | . . . . . Garrison Access . | . . . . . Data Cores Recovered 1 | . . . 1 . Used . | . . . . . Hacking Detections 5 | . 3 . 1 1 Full Trace Events 2 | . 2 . . . Feedback Events . | . . . . . Feedback Blocked . | . . . . . Robot Schematics Acquired . | . . . . . Robots Built . | . . . . . Authchips . | . . . . . Time . | . . . . . Total Robot Build Rating . | . . . . . Part Schematics Acquired . | . . . . . Parts Built . | . . . . . Authchips . | . . . . . Time . | . . . . . Total Part Build Rating . | . . . . . Part Studies Acquired . | . . . . . Parts Repaired . | . . . . . Time . | . . . . . Parts Recycled . | . . . . . Recycled Matter . | . . . . . Retrieved Matter . | . . . . . Retrieved Components . | . . . . . Parts Scanalyzed . | . . . . . Part Schematics Acquired . | . . . . . Parts Damaged . | . . . . . Bothacking | -11 -10 -10 -8 -7 ------------ Run | Yrd Mat Sub Mat Fac Used RIF Installer . | . . . . . Robots Hacked . | . . . . . Non-combat . | . . . . . Combat . | . . . . . Robot Hacks Applied . | . . . . . Relay Couplers Released . | . . . . . Fabnet Peak Effective % . | . . . . . Robots Rewired . | . . . . . Allies Hacked . | . . . . . Hacks Repelled . | . . . . . Allies | -11 -10 -10 -8 -7 -------- Run | Yrd Mat Sub Mat Fac Total Allies . | . . . . . Largest Group . | . . . . . Highest-Rated Group . | . . . . . Highest-Rated Ally . | . . . . . Total Orders . | . . . . . Ally Attacks . | . . . . . Total Damage . | . . . . . Kills . | . . . . . Allies Corrupted . | . . . . . Allies Melted . | . . . . . Intel | -11 -10 -10 -8 -7 ------- Run | Yrd Mat Sub Mat Fac Active Infowar (turns) 3771 | . 617 749 1807 598 Optics 321 | . 321 . . . Jamming 330 | . . . . 330 ECM 3120 | . 296 749 1807 268 Robot Analysis Total . | . . . . . Derelict Logs Recovered . | . . . . . Drone Launches . | . . . . . Drone Recoveries . | . . . . . Exploration | -11 -10 -10 -8 -7 ------------- Run | Yrd Mat Sub Mat Fac Turns Passed 4629 | 130 1211 749 1807 732 Spaces Moved 2659 | 103 818 366 919 453 Core 47 | 34 . . . 13 Treads . | . . . . . Legs 2583 | 69 818 366 919 411 Wheels 5 | . . . . 5 Hover . | . . . . . Flight 24 | . . . . 24 Fastest Speed 50 | 50 120 120 120 100 Average Speed 120 | 96 120 120 120 126 Slowest Speed 350 | 120 120 120 120 350 Overloaded Moves . | . . . . . Propulsion Burnouts . | . . . . . Robots Hopped . | . . . . . Potential Cave-ins . | . . . . . Cave-ins Triggered . | . . . . . Exploration Rate (%) 36 | 8 94 9 61 10 Regions Visited 4 Branch Regions 1 Pre-discovered Areas . | . . . . . Known Exits Taken . | . . . . . Unknown Exits Taken 4 | 1 1 1 1 . Scrap Searched . | . . . . . Spaces Dug . | . . . . . Terrain Destroyed 67 | . . . 43 24 Melee . | . . . . . Projectile 14 | . . . 8 6 AOE 53 | . . . 35 18 Terrain Rammed . | . . . . . Walls Destroyed . | . . . . . Machines Disabled . | . . . . . Actions | -11 -10 -10 -8 -7 --------- Run | Yrd Mat Sub Mat Fac Total 3749 | 125 959 668 1458 539 Wait 758 | . 37 299 398 24 Move 2655 | 102 817 365 918 453 Hop . | . . . . . Pick Up 56 | 12 21 . 20 3 Fast Attach 14 | . . . 5 9 Attach 20 | 6 4 . 7 3 Detach 1 | . 1 . . . Swap 24 | . 11 . 12 1 Drop 52 | 1 20 . 19 12 Fire 161 | 4 47 4 75 31 Melee . | . . . . . Ram 3 | . . . . 3 Kick 5 | . 1 . 4 . Crush . | . . . . . Escape Stasis . | . . . . . Rewire . | . . . . . Trap . | . . . . . Miscellaneous . | . . . . . Route ------- -11/Scrapyard -10/Materials (discovered 5 exits: [*Mat x3] / [*Min] / [*Sub]) -10/Subcaves -8/Materials -7/Factory (discovered 1 exit: [*Low]) History --------- Turn | Location | Event 2 | -11/Scrapyard | Met Revision 17 81 | -11/Scrapyard | Discovered new exit (range 8) 131 | -11/Scrapyard | Entered Materials 327 | -10/Materials | Build established: Mutant 450 | -10/Materials | Discovered new exit (range 15) 547 | -10/Materials | Discovered new exit (range 10) 599 | -10/Materials | Discovered new exit (range 8) 980 | -10/Materials | Discovered new exit (range 3) 1112 | -10/Materials | Discovered new exit (range 9) 1342 | -10/Materials | Entered Subcaves 1343 | -10/Subcaves | Approached by a straggling Scientist 1344 | -10/Subcaves | Discovered new exit (range 9) 1370 | -10/Subcaves | A swath of the cavern ceiling suddenly collapsed 2091 | -10/Subcaves | Entered Materials 2091 | -8/Materials | Evolved 4 slots: Propulsion x2, Utility x1, Weapon x1 2381 | -8/Materials | Build established: Gunner 3099 | -8/Materials | Discovered new exit (range 15) 3213 | -8/Materials | Build established: Scavenger-Gunner 3433 | -8/Materials | Garrison activated, responded to threat 3898 | -8/Materials | Entered Factory 3898 | -7/Factory | Evolved 2 slots: Power x1, Utility x1 4368 | -7/Factory | Discovered new exit (range 14) 4516 | -7/Factory | Lost 5 parts (2p2n1u) 4630 | -7/Factory | Self-destructed Last Messages --------------- Destroyed Wheel. U-05 Engineer destroyed. Nuclear Reactor explodes. Destroyed Lgt. Ion Engine. Destroyed Wheel. K-01 Serf destroyed. Nuclear Reactor explodes. K-01 Serf destroyed. K-01 Serf collects debris. Nuclear Reactor explodes. K-01 Serf destroyed. [Achievement: It Was An Accident, I Swear] The unstable cave ceiling collapses. K-01 Serf collects debris. Dropped Carbon-fiber Leg. Dropped VTOL Module. Different forms of propulsion may not be used simultaneously, VTOL Module automatically deactivated. Dropped VTOL Module. Map ----- +----------------------------------------------------+ | ?????????????????????????????????????????????????? | | ?????????????????????????????????????????????????? | | ?????????????????????????????????????????????????? | | ?????????????????????????????????????????????????? | | ?????????????????????????????????????????????????? | | ?????????????????????????????????????????????????? | | ?????????????????????????????????????????????????? | | ?????????????????????????????????????????????????? | | ?????????????????????????????????????????????????? | | ?????????????????????????????????????????????????? | | ?????????????????????????????????????????????????? | | ?????????????????????????????????????? ??????????? | | ??????????????????????????????????????= ????????? | | ????????????????????????????????????? % ?????? | | ????????????????????????????????????? ???? | | ????????????????????????????????????? ?? | | ????????????????????????????????????? ?? | | ????????????????????????????????????? ? | | ????????????????????????????????????? ? | | ??????##+###????????????????????????? | | ??????# ????????????????????????## | | ??????# #????????????????????????# | | ####### #????????###########?????# ! | | ########?# #?????# %= | | # ## #?# ####### ! | | # ###= @ # | | # < !%%+|= # !== | | ???# !###== # | | ???# ####### ! #?# + ! | | ???# #?????## ##?# # % % % | | ???# #??????# #??# #^^^^^###+## # #### | | ???# #??????# #??######+#### % # ?? ##??? | | ?###+######## #?????? %= # ?? ?? #???? | | ?# ## ##????# % # ?? #???? | | ?# """ """ # #????# #? ? ??#???? | | ?# """ """ # ###### #?? ? ?????? | | ?# """ """ + #????? ?????? | | ?# # ############# #????? ????? | | ?# ! # #?########### #?????? #???? | | ?# ###!###?# # #??????####???? | | ?# #?# ##### # ##########????? | | ?###########?#=[![ + """""" # # #????? | | ?????????#####+##### """""" + # """ #????? | | ?????????# ## """""" # # """ #????? | | ?????????# """ = ## """""" # # """ #????? | | ?????????# """ ## # # #????? | | ?????????# """ ## # # """ #????? | | ?????????# ############ # """ #????? | | ?????????# """ #??????????# # """ #????? | | ?????????# """ % #??????????# + #????? | +----------------------------------------------------+ Best States ------------- Heat Dissipation 48 Energy Generation 21 Energy Capacity 325 Matter Stores 300 Matter Capacity 350 Sight Range 18 Terrain Scan Density 10 ECM Strength 1 Jamming Range 12 Armor Coverage 225 Resistance: KI 20 Resistance: TH 20 Resistance: EX 20 Resistance: EM 20 Resistance: I 20 Resistance: S 20 Resistance: P 20 Evasion (%) 55 Targeting Accuracy 12 Kinecelleration 30 Offensive Hacking 10 Item Schematics ----------------- None Robot Schematics ------------------ None Fabricated ------------ Nothing Repaired ---------- Nothing Studied --------- None Alien Tech Used ----------------- None Achievements -------------- Crack Shot For Emergencies Only It Was An Accident, I Swear Librarian Loot Pinata Made in Tau Ceti IV Novice Programmer One Hack Too Far Spot Them First Troublemaker Uninvited Guest Well Done Challenges ------------ None Game ------ Seed SupercompositeKineticUnit Manual? 0 Play Time 01:29:02 Cumulative 1.4 hours Start 2026.01.02 @ 11:48:13 End 2026.01.02 @ 15:58:06 Sessions 1 Manual Loads 0 Difficulty Adventurer Special Mode None Game No. 1 Rogue 0 Adventurer 1 Explorer 0 Win Type - Total 0 Types 0/0/0/0/0/0/0/0/0/0 Lore% 1 Gallery% 2 Achievement% 2 Wizard Run 0 Options --------- Layout 1 ASCII 0 Keyboard 0 Movement Numpad Keybinds 0 Fullscreen 1 Font 32/SmallcapsGlow Map View 50x35 Zoom Use 0% Tactical HUD 0 Map Filters NONE Filters NONE Steam 1 RUN: 9aedf91d-56fa-4b08-817c-9313230e700e